[Event "Titled Tuesday Blitz January 25 2022"]
[White "Villegas, Pierre"]
[Black "Pakleza, Zbigniew"]
[WhiteFideId "654183"]
[BlackFideId "1119290"]
[WhiteElo "2410"]
[BlackElo "2467"]
[Result "1-0"]
[Round "06"]
[TimeControl "180+1"]
[Date "2022.01.26"]
[WhiteClock "0:00:05"]
[BlackClock "0:00:12"]

1. d4 {[%clk 0:03:00]}  d6 {[%clk 0:02:59]} 2. e4 {[%clk 0:02:59]}  Nf6 {[%clk 0:02:59]} 3. f3 {[%clk 0:02:59]}  Nbd7 {[%clk 0:02:56]} 4. c4 {[%clk 0:02:58]}  e5 {[%clk 0:02:56]} 5. Ne2 {[%clk 0:02:59]}  Be7 {[%clk 0:02:56]} 6. Nbc3 {[%clk 0:02:57]}  O-O {[%clk 0:02:56]} 7. Be3 {[%clk 0:02:58]}  a6 {[%clk 0:02:52]} 8. Qd2 {[%clk 0:02:57]}  c6 {[%clk 0:02:50]} 9. d5 {[%clk 0:02:57]}  Ne8 {[%clk 0:02:43]} 10. Ng3 {[%clk 0:02:42]}  g6 {[%clk 0:02:36]} 11. Bd3 {[%clk 0:02:35]}  Ng7 {[%clk 0:02:32]} 12. O-O {[%clk 0:02:33]}  c5 {[%clk 0:02:22]} 13. a3 {[%clk 0:02:15]}  b6 {[%clk 0:01:57]} 14. b4 {[%clk 0:02:10]}  f5 {[%clk 0:01:33]} 15. exf5 {[%clk 0:02:10]}  gxf5 {[%clk 0:01:27]} 16. Bh6 {[%clk 0:02:03]}  f4 {[%clk 0:00:58]} 17. Bxg7 {[%clk 0:01:52]}  Kxg7 {[%clk 0:00:52]} 18. Nge4 {[%clk 0:01:52]}  Nf6 {[%clk 0:00:46]} 19. g4 {[%clk 0:01:48]}  fxg3 {[%clk 0:00:42]} 20. hxg3 {[%clk 0:01:47]}  Kh8 {[%clk 0:00:39]} 21. Nxf6 {[%clk 0:01:35]}  Bxf6 {[%clk 0:00:38]} 22. Kg2 {[%clk 0:01:35]}  Ra7 {[%clk 0:00:38]} 23. Rh1 {[%clk 0:01:34]}  Rg8 {[%clk 0:00:38]} 24. Be4 {[%clk 0:00:45]}  Rag7 {[%clk 0:00:33]} 25. Ne2 {[%clk 0:00:45]}  Bg5 {[%clk 0:00:30]} 26. Qd3 {[%clk 0:00:43]}  Qe7 {[%clk 0:00:29]} 27. Rh5 {[%clk 0:00:40]}  h6 {[%clk 0:00:18]} 28. Rah1 {[%clk 0:00:39]}  Rf8 {[%clk 0:00:19]} 29. g4 {[%clk 0:00:33]}  Kg8 {[%clk 0:00:19]} 30. Ng3 {[%clk 0:00:32]}  Rf4 {[%clk 0:00:18]} 31. Bf5 {[%clk 0:00:30]}  Rd4 {[%clk 0:00:15]} 32. Qb1 {[%clk 0:00:19]}  Rd2+ {[%clk 0:00:16]} 33. Kh3 {[%clk 0:00:19]}  Bd7 {[%clk 0:00:13]} 34. Bxd7 {[%clk 0:00:14]}  Qxd7 {[%clk 0:00:14]} 35. Ne4 {[%clk 0:00:14]}  Qf7 {[%clk 0:00:11]} 36. Nxd2 {[%clk 0:00:10]}  Bxd2 {[%clk 0:00:09]} 37. Rf5 {[%clk 0:00:09]}  Qg6 {[%clk 0:00:09]} 38. bxc5 {[%clk 0:00:08]}  bxc5 {[%clk 0:00:07]} 39. Qb8+ {[%clk 0:00:07]}  Kh7 {[%clk 0:00:07]} 40. Kg2 {[%clk 0:00:07]}  Bg5 {[%clk 0:00:05]} 41. Qc8 {[%clk 0:00:06]}  a5 {[%clk 0:00:04]} 42. Qe6 {[%clk 0:00:06]}  Rb7 {[%clk 0:00:03]} 43. Qxg6+ {[%clk 0:00:02]}  Kxg6 {[%clk 0:00:04]} 44. Rf1 {[%clk 0:00:02]}  Rb2+ {[%clk 0:00:05]} 45. Rf2 {[%clk 0:00:02]}  Rb3 {[%clk 0:00:05]} 46. Rf8 {[%clk 0:00:02]}  Rxa3 {[%clk 0:00:06]} 47. Re8 {[%clk 0:00:03]}  Kf7 {[%clk 0:00:05]} 48. Re6 {[%clk 0:00:03]}  Be7 {[%clk 0:00:05]} 49. f4 {[%clk 0:00:02]}  a4 {[%clk 0:00:06]} 50. fxe5+ {[%clk 0:00:02]}  Ke8 {[%clk 0:00:06]} 51. exd6 {[%clk 0:00:03]}  Kd7 {[%clk 0:00:06]} 52. Rxe7+ {[%clk 0:00:04]}  Kxd6 {[%clk 0:00:07]} 53. Re6+ {[%clk 0:00:04]}  Kd7 {[%clk 0:00:08]} 54. Rf7+ {[%clk 0:00:04]}  Kd8 {[%clk 0:00:08]} 55. Rxh6 {[%clk 0:00:05]}  Ra2+ {[%clk 0:00:09]} 56. Kg3 {[%clk 0:00:05]}  Ke8 {[%clk 0:00:10]} 57. Ra7 {[%clk 0:00:05]}  Ra3+ {[%clk 0:00:10]} 58. Kh4 {[%clk 0:00:05]}  Rh3+ {[%clk 0:00:11]} 59. Kxh3 {[%clk 0:00:04]}  a3 {[%clk 0:00:12]} 60. Rh8# {[%clk 0:00:05]} 1-0


[Site "https://www.chess.com"]

[Event "Titled Tuesday Blitz January 25 2022"]
[White "Visakh N R"]
[Black "Odegov, Artem"]
[WhiteFideId "25012223"]
[BlackFideId "34183644"]
[WhiteElo "2454"]
[BlackElo "2277"]
[Result "1-0"]
[Round "06"]
[TimeControl "180+1"]
[Date "2022.01.26"]
[WhiteClock "0:01:33"]
[BlackClock "0:00:24"]

1. e4 {[%clk 0:03:00]}  e6 {[%clk 0:03:00]} 2. d4 {[%clk 0:03:00]}  d5 {[%clk 0:03:01]} 3. Nd2 {[%clk 0:03:00]}  Nf6 {[%clk 0:03:00]} 4. e5 {[%clk 0:03:00]}  Nfd7 {[%clk 0:03:01]} 5. Ngf3 {[%clk 0:03:01]}  c5 {[%clk 0:03:01]} 6. c3 {[%clk 0:03:01]}  Nc6 {[%clk 0:03:02]} 7. Bd3 {[%clk 0:03:02]}  cxd4 {[%clk 0:03:02]} 8. cxd4 {[%clk 0:03:01]}  Qb6 {[%clk 0:03:02]} 9. Nb3 {[%clk 0:02:59]}  a5 {[%clk 0:03:02]} 10. a4 {[%clk 0:02:59]}  Bb4+ {[%clk 0:03:02]} 11. Kf1 {[%clk 0:02:51]}  f5 {[%clk 0:02:49]} 12. exf6 {[%clk 0:02:49]}  Nxf6 {[%clk 0:02:48]} 13. h4 {[%clk 0:02:42]}  O-O {[%clk 0:02:47]} 14. h5 {[%clk 0:02:42]}  Bd7 {[%clk 0:02:41]} 15. Rh4 {[%clk 0:02:39]}  Be7 {[%clk 0:02:31]} 16. h6 {[%clk 0:02:30]}  g6 {[%clk 0:02:29]} 17. Bg5 {[%clk 0:02:30]}  Rf7 {[%clk 0:02:28]} 18. Rc1 {[%clk 0:02:19]}  Raf8 {[%clk 0:02:26]} 19. Nc5 {[%clk 0:02:19]}  Bc8 {[%clk 0:02:23]} 20. Qe2 {[%clk 0:02:14]}  Nxd4 {[%clk 0:02:13]} 21. Rxd4 {[%clk 0:02:10]}  Bxc5 {[%clk 0:02:12]} 22. Rf4 {[%clk 0:02:10]}  Nh5 {[%clk 0:01:59]} 23. Rxf7 {[%clk 0:02:01]}  Rxf7 {[%clk 0:02:00]} 24. Qc2 {[%clk 0:01:59]}  Rc7 {[%clk 0:01:19]} 25. Be3 {[%clk 0:01:57]}  Qa7 {[%clk 0:00:37]} 26. Bxg6 {[%clk 0:01:37]}  Nf6 {[%clk 0:00:35]} 27. Bxh7+ {[%clk 0:01:36]}  Nxh7 {[%clk 0:00:24]} 28. Qg6+ {[%clk 0:01:34]}  Kh8 {[%clk 0:00:24]} 29. Rxc5 {[%clk 0:01:33]} 1-0


[Site "https://www.chess.com"]

[Event "Titled Tuesday Blitz January 25 2022"]
[White "Xiong, Jeffery"]
[Black "Sapunov, Evgeny"]
[WhiteFideId "2047640"]
[BlackFideId "4126661"]
[WhiteElo "2727"]
[BlackElo "2470"]
[Result "1-0"]
[Round "06"]
[TimeControl "180+1"]
[Date "2022.01.26"]
[WhiteClock "0:01:24"]
[BlackClock "0:01:46"]

1. e4 {[%clk 0:03:00]}  c5 {[%clk 0:02:59]} 2. Nf3 {[%clk 0:02:59]}  d6 {[%clk 0:03:00]} 3. Bb5+ {[%clk 0:02:59]}  Nd7 {[%clk 0:03:00]} 4. d4 {[%clk 0:02:53]}  Nf6 {[%clk 0:02:57]} 5. Nc3 {[%clk 0:02:52]}  cxd4 {[%clk 0:02:57]} 6. Qxd4 {[%clk 0:02:53]}  e5 {[%clk 0:02:57]} 7. Qd3 {[%clk 0:02:51]}  h6 {[%clk 0:02:58]} 8. Be3 {[%clk 0:02:51]}  Be7 {[%clk 0:02:58]} 9. a4 {[%clk 0:02:48]}  O-O {[%clk 0:02:58]} 10. O-O {[%clk 0:02:45]}  a6 {[%clk 0:02:54]} 11. Bc4 {[%clk 0:02:45]}  Nb6 {[%clk 0:02:53]} 12. Bb3 {[%clk 0:02:44]}  Be6 {[%clk 0:02:52]} 13. a5 {[%clk 0:02:37]}  Nbd7 {[%clk 0:02:51]} 14. Bxe6 {[%clk 0:02:35]}  fxe6 {[%clk 0:02:50]} 15. Qc4 {[%clk 0:02:35]}  Kf7 {[%clk 0:02:50]} 16. Rfd1 {[%clk 0:02:26]}  Rc8 {[%clk 0:02:47]} 17. Qb3 {[%clk 0:02:26]}  Qc7 {[%clk 0:02:48]} 18. Ra4 {[%clk 0:02:26]}  Rfe8 {[%clk 0:02:43]} 19. Rb4 {[%clk 0:02:25]}  Rb8 {[%clk 0:02:42]} 20. Ba7 {[%clk 0:02:25]}  Rbd8 {[%clk 0:02:36]} 21. Rxb7 {[%clk 0:02:24]}  Qxa5 {[%clk 0:02:36]} 22. h3 {[%clk 0:02:05]}  Nc5 {[%clk 0:02:31]} 23. Bxc5 {[%clk 0:01:58]}  Qxc5 {[%clk 0:02:31]} 24. Ne1 {[%clk 0:01:53]}  Rd7 {[%clk 0:02:28]} 25. Rb6 {[%clk 0:01:46]}  Ra8 {[%clk 0:02:20]} 26. Nd3 {[%clk 0:01:45]}  Qc7 {[%clk 0:02:14]} 27. f4 {[%clk 0:01:43]}  Bd8 {[%clk 0:02:03]} 28. Rb4 {[%clk 0:01:33]}  exf4 {[%clk 0:01:55]} 29. Nxf4 {[%clk 0:01:34]}  Re7 {[%clk 0:01:55]} 30. Nxe6 {[%clk 0:01:29]}  Rxe6 {[%clk 0:01:46]} 31. Rb7 {[%clk 0:01:29]}  Ra7 {[%clk 0:01:45]} 32. Rxc7+ {[%clk 0:01:25]}  Rxc7 {[%clk 0:01:46]} 33. Rxd6 {[%clk 0:01:24]} 1-0


[Site "https://www.chess.com"]

[Event "Titled Tuesday Blitz January 25 2022"]
[White "Zakhartsov, Vladimir"]
[Black "Hakemi, Arman"]
[WhiteFideId "4145097"]
[BlackFideId "22520805"]
[WhiteElo "2432"]
[BlackElo "2208"]
[Result "1-0"]
[Round "06"]
[TimeControl "180+1"]
[Date "2022.01.26"]
[WhiteClock "0:02:15"]
[BlackClock "0:02:12"]

1. c4 {[%clk 0:03:00]}  g6 {[%clk 0:02:59]} 2. Nc3 {[%clk 0:02:59]}  Bg7 {[%clk 0:03:00]} 3. g3 {[%clk 0:02:59]}  d6 {[%clk 0:03:01]} 4. Bg2 {[%clk 0:02:59]}  Nc6 {[%clk 0:03:02]} 5. e3 {[%clk 0:02:59]}  Bd7 {[%clk 0:03:03]} 6. d4 {[%clk 0:02:58]}  Qc8 {[%clk 0:03:03]} 7. h4 {[%clk 0:02:53]}  h5 {[%clk 0:03:03]} 8. Nge2 {[%clk 0:02:52]}  Nf6 {[%clk 0:03:03]} 9. Nf4 {[%clk 0:02:51]}  e5 {[%clk 0:03:01]} 10. dxe5 {[%clk 0:02:46]}  Nxe5 {[%clk 0:03:02]} 11. b3 {[%clk 0:02:46]}  Bg4 {[%clk 0:02:56]} 12. f3 {[%clk 0:02:44]}  Bd7 {[%clk 0:02:55]} 13. Bb2 {[%clk 0:02:44]}  O-O {[%clk 0:02:53]} 14. O-O {[%clk 0:02:44]}  Bc6 {[%clk 0:02:53]} 15. e4 {[%clk 0:02:44]}  a5 {[%clk 0:02:47]} 16. Qc2 {[%clk 0:02:38]}  a4 {[%clk 0:02:45]} 17. Ncd5 {[%clk 0:02:38]}  Nxd5 {[%clk 0:02:43]} 18. cxd5 {[%clk 0:02:35]}  Bb5 {[%clk 0:02:43]} 19. Rfc1 {[%clk 0:02:30]}  a3 {[%clk 0:02:43]} 20. Bc3 {[%clk 0:02:30]}  c6 {[%clk 0:02:39]} 21. Rab1 {[%clk 0:02:26]}  c5 {[%clk 0:02:28]} 22. Ba1 {[%clk 0:02:25]}  Bd7 {[%clk 0:02:23]} 23. Kh1 {[%clk 0:02:18]}  f5 {[%clk 0:02:22]} 24. Bxe5 {[%clk 0:02:15]}  Bxe5 {[%clk 0:02:12]} 25. Nxg6 {[%clk 0:02:15]}  Bxg3 {[%clk 0:02:12]} 26. Ne7+ {[%clk 0:02:15]} 1-0


[Site "https://www.chess.com"]

[Event "Titled Tuesday Blitz January 25 2022"]
[White "Zarubitski, Viachaslau"]
[Black "Sychev, Klementy"]
[WhiteFideId "13509373"]
[BlackFideId "4114060"]
[WhiteElo "2325"]
[BlackElo "2564"]
[Result "1-0"]
[Round "06"]
[TimeControl "180+1"]
[Date "2022.01.26"]
[WhiteClock "0:00:42"]
[BlackClock "0:00:02"]

1. d4 {[%clk 0:02:52]}  g6 {[%clk 0:02:56]} 2. c4 {[%clk 0:02:52]}  Bg7 {[%clk 0:02:56]} 3. Nf3 {[%clk 0:02:53]}  d6 {[%clk 0:02:56]} 4. g3 {[%clk 0:02:50]}  Bd7 {[%clk 0:02:51]} 5. Bg2 {[%clk 0:02:49]}  Nc6 {[%clk 0:02:51]} 6. O-O {[%clk 0:02:49]}  Qc8 {[%clk 0:02:51]} 7. Nc3 {[%clk 0:02:50]}  Bh3 {[%clk 0:02:51]} 8. e4 {[%clk 0:02:50]}  h5 {[%clk 0:02:50]} 9. Bxh3 {[%clk 0:02:46]}  Qxh3 {[%clk 0:02:49]} 10. d5 {[%clk 0:02:46]}  Ne5 {[%clk 0:02:48]} 11. Ng5 {[%clk 0:02:46]}  Qd7 {[%clk 0:02:45]} 12. f4 {[%clk 0:02:47]}  Nxc4 {[%clk 0:02:43]} 13. e5 {[%clk 0:02:48]}  dxe5 {[%clk 0:02:14]} 14. Nxf7 {[%clk 0:02:45]}  exf4 {[%clk 0:01:33]} 15. Nxh8 {[%clk 0:02:42]}  Bxh8 {[%clk 0:01:32]} 16. Bxf4 {[%clk 0:02:35]}  O-O-O {[%clk 0:01:26]} 17. Rc1 {[%clk 0:02:29]}  Nf6 {[%clk 0:01:09]} 18. Qe2 {[%clk 0:02:25]}  Nd6 {[%clk 0:01:03]} 19. Rfe1 {[%clk 0:02:19]}  Re8 {[%clk 0:00:59]} 20. Qe6 {[%clk 0:02:01]}  Qxe6 {[%clk 0:00:56]} 21. dxe6 {[%clk 0:02:02]}  c6 {[%clk 0:00:44]} 22. Bxd6 {[%clk 0:01:55]}  exd6 {[%clk 0:00:44]} 23. Nb5 {[%clk 0:01:56]}  Re7 {[%clk 0:00:36]} 24. Nxd6+ {[%clk 0:01:55]}  Kc7 {[%clk 0:00:36]} 25. Nf7 {[%clk 0:01:46]}  Bg7 {[%clk 0:00:35]} 26. Ne5 {[%clk 0:01:37]}  g5 {[%clk 0:00:33]} 27. Ng6 {[%clk 0:01:37]}  Re8 {[%clk 0:00:33]} 28. e7 {[%clk 0:01:37]}  Nd5 {[%clk 0:00:33]} 29. Re2 {[%clk 0:01:32]}  Kd7 {[%clk 0:00:24]} 30. Rf1 {[%clk 0:01:30]}  Bf6 {[%clk 0:00:23]} 31. Rf5 {[%clk 0:01:18]}  Kd6 {[%clk 0:00:17]} 32. Kg2 {[%clk 0:01:09]}  a5 {[%clk 0:00:17]} 33. h4 {[%clk 0:01:10]}  gxh4 {[%clk 0:00:16]} 34. gxh4 {[%clk 0:01:10]}  a4 {[%clk 0:00:15]} 35. Rxh5 {[%clk 0:01:08]}  b5 {[%clk 0:00:15]} 36. Rf5 {[%clk 0:01:03]}  b4 {[%clk 0:00:11]} 37. h5 {[%clk 0:01:03]}  Bxe7 {[%clk 0:00:11]} 38. Rfe5 {[%clk 0:00:54]}  Rg8 {[%clk 0:00:11]} 39. Re6+ {[%clk 0:00:54]}  Kc5 {[%clk 0:00:08]} 40. Rxe7 {[%clk 0:00:54]}  Nf4+ {[%clk 0:00:06]} 41. Kf3 {[%clk 0:00:54]}  Nxh5 {[%clk 0:00:07]} 42. R7e5+ {[%clk 0:00:53]}  Kb6 {[%clk 0:00:07]} 43. Rxh5 {[%clk 0:00:48]}  Rxg6 {[%clk 0:00:07]} 44. Re4 {[%clk 0:00:48]}  c5 {[%clk 0:00:07]} 45. Rc4 {[%clk 0:00:49]}  Rc6 {[%clk 0:00:05]} 46. b3 {[%clk 0:00:49]}  a3 {[%clk 0:00:05]} 47. Ke3 {[%clk 0:00:49]}  Kb5 {[%clk 0:00:05]} 48. Kd3 {[%clk 0:00:50]}  Rd6+ {[%clk 0:00:05]} 49. Kc2 {[%clk 0:00:50]}  Rc6 {[%clk 0:00:05]} 50. Re4 {[%clk 0:00:50]}  Rg6 {[%clk 0:00:03]} 51. Ree5 {[%clk 0:00:46]}  Rc6 {[%clk 0:00:03]} 52. Rd5 {[%clk 0:00:45]}  Kb6 {[%clk 0:00:02]} 53. Kd2 {[%clk 0:00:44]}  Kb5 {[%clk 0:00:02]} 54. Kd3 {[%clk 0:00:44]}  Rc7 {[%clk 0:00:02]} 55. Rd6 {[%clk 0:00:42]}  Rg7 {[%clk 0:00:02]} 56. Rhh6 {[%clk 0:00:42]}  Rg3+ {[%clk 0:00:02]} 57. Ke2 {[%clk 0:00:43]}  c4 {[%clk 0:00:02]} 58. Rh5+ {[%clk 0:00:42]} 1-0


[Site "https://www.chess.com"]

[Event "Titled Tuesday Blitz January 25 2022"]
[White "Al Hosani, Omran"]
[Black "Erdogdu, Mert"]
[WhiteFideId "9308733"]
[BlackFideId "6301495"]
[WhiteElo "2246"]
[BlackElo "2485"]
[Result "0-1"]
[Round "07"]
[TimeControl "180+1"]
[Date "2022.01.26"]
[WhiteClock "0:00:03"]
[BlackClock "0:00:09"]

1. d4 {[%clk 0:02:56]}  d5 {[%clk 0:02:59]} 2. c4 {[%clk 0:02:55]}  e6 {[%clk 0:02:59]} 3. Nc3 {[%clk 0:02:55]}  c5 {[%clk 0:03:00]} 4. cxd5 {[%clk 0:02:53]}  exd5 {[%clk 0:03:00]} 5. Nf3 {[%clk 0:02:51]}  Nc6 {[%clk 0:03:00]} 6. g3 {[%clk 0:02:51]}  Nf6 {[%clk 0:03:00]} 7. Bg2 {[%clk 0:02:50]}  Be7 {[%clk 0:03:00]} 8. O-O {[%clk 0:02:50]}  O-O {[%clk 0:03:00]} 9. dxc5 {[%clk 0:02:45]}  Bxc5 {[%clk 0:02:59]} 10. Bg5 {[%clk 0:02:45]}  d4 {[%clk 0:02:59]} 11. Bxf6 {[%clk 0:02:30]}  Qxf6 {[%clk 0:03:00]} 12. Ne4 {[%clk 0:02:31]}  Qe7 {[%clk 0:03:00]} 13. Nxc5 {[%clk 0:02:31]}  Qxc5 {[%clk 0:03:01]} 14. Qb3 {[%clk 0:02:30]}  Re8 {[%clk 0:02:48]} 15. Rfe1 {[%clk 0:02:22]}  Be6 {[%clk 0:02:23]} 16. Qxb7 {[%clk 0:02:19]}  Rab8 {[%clk 0:02:23]} 17. Qc7 {[%clk 0:02:18]}  Rec8 {[%clk 0:02:20]} 18. Qf4 {[%clk 0:01:46]}  Rxb2 {[%clk 0:02:11]} 19. Rac1 {[%clk 0:01:46]}  Qf5 {[%clk 0:01:30]} 20. Qd6 {[%clk 0:01:39]}  Qd5 {[%clk 0:01:11]} 21. Qxd5 {[%clk 0:01:30]}  Bxd5 {[%clk 0:01:11]} 22. Nxd4 {[%clk 0:01:29]}  Bxg2 {[%clk 0:01:10]} 23. Kxg2 {[%clk 0:01:29]}  Ne7 {[%clk 0:01:10]} 24. Rxc8+ {[%clk 0:01:23]}  Nxc8 {[%clk 0:01:10]} 25. Rc1 {[%clk 0:01:23]}  Nb6 {[%clk 0:01:03]} 26. Rc2 {[%clk 0:01:23]}  Rb4 {[%clk 0:00:59]} 27. e3 {[%clk 0:01:21]}  g6 {[%clk 0:00:59]} 28. g4 {[%clk 0:01:17]}  Kg7 {[%clk 0:00:57]} 29. g5 {[%clk 0:01:16]}  Ra4 {[%clk 0:00:56]} 30. h4 {[%clk 0:01:15]}  Nd5 {[%clk 0:00:52]} 31. Kf3 {[%clk 0:01:11]}  Ra3 {[%clk 0:00:46]} 32. Rc5 {[%clk 0:01:09]}  Nb4 {[%clk 0:00:31]} 33. Rc7 {[%clk 0:01:07]}  Kf8 {[%clk 0:00:31]} 34. Nb5 {[%clk 0:01:00]}  Rxa2 {[%clk 0:00:25]} 35. Nd6 {[%clk 0:00:59]}  Nd3 {[%clk 0:00:24]} 36. Rxf7+ {[%clk 0:00:59]}  Kg8 {[%clk 0:00:24]} 37. Kg3 {[%clk 0:00:48]}  a5 {[%clk 0:00:22]} 38. Rd7 {[%clk 0:00:29]}  Nxf2 {[%clk 0:00:17]} 39. Kf3 {[%clk 0:00:29]}  Nd3 {[%clk 0:00:16]} 40. Rd8+ {[%clk 0:00:23]}  Kg7 {[%clk 0:00:15]} 41. Ke4 {[%clk 0:00:23]}  Nc5+ {[%clk 0:00:10]} 42. Kd5 {[%clk 0:00:22]}  Rc2 {[%clk 0:00:10]} 43. Rc8 {[%clk 0:00:17]}  a4 {[%clk 0:00:09]} 44. Rxc5 {[%clk 0:00:16]}  Rxc5+ {[%clk 0:00:08]} 45. Kxc5 {[%clk 0:00:16]}  a3 {[%clk 0:00:09]} 46. e4 {[%clk 0:00:03]}  a2 {[%clk 0:00:09]} 47. e5 {[%clk 0:00:04]}  a1=Q {[%clk 0:00:09]} 48. Kd5 {[%clk 0:00:03]}  Qa2+ {[%clk 0:00:09]} 49. Kc6 {[%clk 0:00:03]}  Qe6 {[%clk 0:00:09]} 0-1


[Site "https://www.chess.com"]

[Event "Titled Tuesday Blitz January 25 2022"]
[White "Bayramov, Zaur"]
[Black "Dilmukhametov, Artur"]
[WhiteFideId "13405080"]
[BlackFideId "24179922"]
[WhiteElo "2166"]
[BlackElo "2266"]
[Result "0-1"]
[Round "07"]
[TimeControl "180+1"]
[Date "2022.01.26"]
[WhiteClock "0:00:18"]
[BlackClock "0:00:11"]

1. e4 {[%clk 0:02:59]}  e6 {[%clk 0:02:52]} 2. Qe2 {[%clk 0:02:59]}  e5 {[%clk 0:02:52]} 3. g3 {[%clk 0:02:58]}  Nf6 {[%clk 0:02:51]} 4. Bg2 {[%clk 0:02:58]}  Nc6 {[%clk 0:02:52]} 5. Nc3 {[%clk 0:02:59]}  Bc5 {[%clk 0:02:51]} 6. d3 {[%clk 0:02:59]}  O-O {[%clk 0:02:51]} 7. h3 {[%clk 0:02:59]}  Nd4 {[%clk 0:02:48]} 8. Qd1 {[%clk 0:02:59]}  c6 {[%clk 0:02:48]} 9. f4 {[%clk 0:02:58]}  d6 {[%clk 0:02:44]} 10. Nf3 {[%clk 0:02:57]}  Nxf3+ {[%clk 0:02:43]} 11. Qxf3 {[%clk 0:02:57]}  a5 {[%clk 0:02:44]} 12. f5 {[%clk 0:02:54]}  a4 {[%clk 0:02:40]} 13. a3 {[%clk 0:02:53]}  Qb6 {[%clk 0:02:14]} 14. g4 {[%clk 0:02:51]}  d5 {[%clk 0:02:14]} 15. g5 {[%clk 0:02:50]}  dxe4 {[%clk 0:02:14]} 16. dxe4 {[%clk 0:02:51]}  Ne8 {[%clk 0:02:08]} 17. h4 {[%clk 0:02:41]}  Nd6 {[%clk 0:02:01]} 18. Bf1 {[%clk 0:02:36]}  Bd4 {[%clk 0:01:54]} 19. h5 {[%clk 0:02:36]}  Bd7 {[%clk 0:01:35]} 20. Bd3 {[%clk 0:02:33]}  Nb5 {[%clk 0:01:26]} 21. Ne2 {[%clk 0:02:10]}  Bc5 {[%clk 0:01:24]} 22. g6 {[%clk 0:01:56]}  h6 {[%clk 0:01:13]} 23. gxf7+ {[%clk 0:01:53]}  Rxf7 {[%clk 0:01:13]} 24. Qg4 {[%clk 0:01:44]}  Kh8 {[%clk 0:01:06]} 25. c3 {[%clk 0:01:33]}  Be3 {[%clk 0:01:05]} 26. Bxe3 {[%clk 0:01:27]}  Qxe3 {[%clk 0:01:06]} 27. Rh3 {[%clk 0:01:27]}  Qc5 {[%clk 0:00:56]} 28. Bxb5 {[%clk 0:01:21]}  cxb5 {[%clk 0:00:49]} 29. O-O-O {[%clk 0:01:19]}  Bc6 {[%clk 0:00:49]} 30. Rhd3 {[%clk 0:01:15]}  b4 {[%clk 0:00:45]} 31. Rd8+ {[%clk 0:01:09]}  Rf8 {[%clk 0:00:44]} 32. axb4 {[%clk 0:01:04]}  Qe3+ {[%clk 0:00:40]} 33. R8d2 {[%clk 0:01:02]}  a3 {[%clk 0:00:33]} 34. bxa3 {[%clk 0:00:57]}  Bxe4 {[%clk 0:00:20]} 35. Kb2 {[%clk 0:00:46]}  Bxf5 {[%clk 0:00:18]} 36. Qg3 {[%clk 0:00:45]}  Qa7 {[%clk 0:00:18]} 37. Ra1 {[%clk 0:00:41]}  Rad8 {[%clk 0:00:19]} 38. Rad1 {[%clk 0:00:39]}  Ra8 {[%clk 0:00:18]} 39. Ra1 {[%clk 0:00:38]}  Rfd8 {[%clk 0:00:19]} 40. Qe1 {[%clk 0:00:19]}  Qe3 {[%clk 0:00:18]} 41. Rad1 {[%clk 0:00:19]}  Rxd2+ {[%clk 0:00:16]} 42. Qxd2 {[%clk 0:00:19]}  Qa7 {[%clk 0:00:15]} 43. Ra1 {[%clk 0:00:17]}  Qf2 {[%clk 0:00:16]} 44. Qe1 {[%clk 0:00:15]}  Qh2 {[%clk 0:00:12]} 45. a4 {[%clk 0:00:13]}  Bg4 {[%clk 0:00:12]} 46. Ka3 {[%clk 0:00:13]}  Qxe2 {[%clk 0:00:12]} 47. Qxe2 {[%clk 0:00:14]}  Bxe2 {[%clk 0:00:13]} 48. Re1 {[%clk 0:00:14]}  Bb5 {[%clk 0:00:10]} 49. Rxe5 {[%clk 0:00:15]}  Bxa4 {[%clk 0:00:10]} 50. Re7 {[%clk 0:00:14]}  Be8+ {[%clk 0:00:10]} 51. Kb2 {[%clk 0:00:14]}  Bxh5 {[%clk 0:00:11]} 52. Rxb7 {[%clk 0:00:14]}  Bg4 {[%clk 0:00:10]} 53. Re7 {[%clk 0:00:14]}  h5 {[%clk 0:00:11]} 54. Re4 {[%clk 0:00:14]}  Bf3 {[%clk 0:00:10]} 55. Rf4 {[%clk 0:00:14]}  Bg4 {[%clk 0:00:10]} 56. c4 {[%clk 0:00:14]}  g5 {[%clk 0:00:10]} 57. Rd4 {[%clk 0:00:15]}  Kg7 {[%clk 0:00:10]} 58. c5 {[%clk 0:00:15]}  Kf6 {[%clk 0:00:10]} 59. b5 {[%clk 0:00:15]}  Ke5 {[%clk 0:00:10]} 60. Rd2 {[%clk 0:00:14]}  Ra5 {[%clk 0:00:11]} 61. Kc3 {[%clk 0:00:11]}  Rxb5 {[%clk 0:00:11]} 62. Kc4 {[%clk 0:00:11]}  Rb1 {[%clk 0:00:11]} 63. Rd5+ {[%clk 0:00:12]}  Ke4 {[%clk 0:00:10]} 64. Rd4+ {[%clk 0:00:12]}  Ke3 {[%clk 0:00:09]} 65. Rd8 {[%clk 0:00:12]}  Bf3 {[%clk 0:00:08]} 66. Re8+ {[%clk 0:00:11]}  Be4 {[%clk 0:00:08]} 67. c6 {[%clk 0:00:10]}  Rc1+ {[%clk 0:00:02]} 68. Kb5 {[%clk 0:00:10]}  Rxc6 {[%clk 0:00:03]} 69. Rh8 {[%clk 0:00:10]}  h4 {[%clk 0:00:01]} 70. Rg8 {[%clk 0:00:10]}  Kf4 {[%clk 0:00:02]} 71. Rf8+ {[%clk 0:00:11]}  Kg4 {[%clk 0:00:02]} 72. Rg8 {[%clk 0:00:11]}  Bf3 {[%clk 0:00:02]} 73. Re8 {[%clk 0:00:12]}  Rf6 {[%clk 0:00:02]} 74. Re1 {[%clk 0:00:12]}  Rf5+ {[%clk 0:00:02]} 75. Kb6 {[%clk 0:00:12]}  h3 {[%clk 0:00:03]} 76. Ka7 {[%clk 0:00:13]}  h2 {[%clk 0:00:01]} 77. Kb8 {[%clk 0:00:13]}  Kg3 {[%clk 0:00:01]} 78. Rh1 {[%clk 0:00:14]}  g4 {[%clk 0:00:02]} 79. Rf1 {[%clk 0:00:14]}  Be4 {[%clk 0:00:01]} 80. Re1 {[%clk 0:00:14]}  Bf3 {[%clk 0:00:01]} 81. Re3 {[%clk 0:00:14]}  Rf8+ {[%clk 0:00:02]} 82. Kc7 {[%clk 0:00:14]}  h1=Q {[%clk 0:00:02]} 83. Rc3 {[%clk 0:00:15]}  Qh7+ {[%clk 0:00:03]} 84. Kd6 {[%clk 0:00:15]}  Rf6+ {[%clk 0:00:04]} 85. Ke5 {[%clk 0:00:16]}  Qf5+ {[%clk 0:00:05]} 86. Kd4 {[%clk 0:00:16]}  Qe4+ {[%clk 0:00:06]} 87. Kc5 {[%clk 0:00:16]}  Rc6+ {[%clk 0:00:07]} 88. Kb5 {[%clk 0:00:16]}  Qd5+ {[%clk 0:00:06]} 89. Kb4 {[%clk 0:00:16]}  Rb6+ {[%clk 0:00:07]} 90. Ka4 {[%clk 0:00:17]}  Qa5+ {[%clk 0:00:08]} 91. Kxa5 {[%clk 0:00:17]}  Re6 {[%clk 0:00:08]} 92. Re3 {[%clk 0:00:17]}  Rxe3 {[%clk 0:00:08]} 93. Kb4 {[%clk 0:00:17]}  Kf2 {[%clk 0:00:09]} 94. Kc5 {[%clk 0:00:17]}  g3 {[%clk 0:00:10]} 95. Kd4 {[%clk 0:00:18]}  g2 {[%clk 0:00:11]} 0-1


[Site "https://www.chess.com"]